bitfinex/quotes_BTCUSD_20240823
["timestamp","ask_amount","ask_price","bid_price","bid_amount"]
[1724431029567,0.29499053,61769.0,61768.0,0.161896]
[1724431030448,0.29399053,61769.0,61768.0,0.485688]
[1724431030647,0.29399053,61769.0,61768.0,0.80948]
[1724431030648,0.12869053,61769.0,61768.0,0.80948]
[1724431031872,0.12869053,61769.0,61768.0,1.29727498]
[1724431032070,0.00149053,61769.0,61768.0,1.29727498]
[1724431032647,0.00149053,61769.0,61768.0,1.30356295]
[1724431033069,0.1572,61778.0,61768.0,1.30356295]
[1724431033070,0.0120734,61792.0,61778.0,1.780564]
[1724431033275,0.0120734,61792.0,61781.0,0.646786]
[1724431033490,0.0120734,61792.0,61787.0,0.646738]
[1724431033733,0.0120734,61792.0,61787.0,2.65659008]
[1724431033938,0.0120734,61792.0,61787.0,2.82996248]
[1724431034136,0.0120734,61792.0,61787.0,2.80586787]
[1724431034548,0.0120734,61792.0,61787.0,2.7336729]
[1724431034754,0.0120734,61792.0,61787.0,2.82996248]
[1724431034953,0.0120734,61792.0,61787.0,2.7336729]
[1724431035211,0.0120734,61792.0,61787.0,2.8198712]
[1724431035730,0.0120734,61792.0,61791.0,1.641359]
[1724431036041,0.0120734,61792.0,61791.0,1.92836198]
[1724431037751,0.0120734,61792.0,61791.0,1.94236198]
[1724431037902,0.0120734,61792.0,61791.0,1.95636198]
[1724431038109,0.0120734,61792.0,61791.0,1.94236198]
[1724431038991,0.0120734,61792.0,61791.0,1.95636198]
[1724431039449,4e-05,61800.0,61798.0,1.44385637]
[1724431039646,4e-05,61800.0,61798.0,1.87305935]
[1724431039835,4e-05,61800.0,61799.0,0.211614]
[1724431040038,4e-05,61800.0,61799.0,1.12611066]
[1724431040283,4e-05,61800.0,61799.0,1.44973966]
[1724431041260,4e-05,61800.0,61799.0,1.46050398]
[1724431041619,4e-05,61800.0,61799.0,1.47450398]
[1724431042021,4e-05,61800.0,61799.0,1.46050398]
[1724431042893,4e-05,61800.0,61799.0,1.46950398]
[1724431043042,4e-05,61800.0,61799.0,1.44650398]
[1724431043272,4e-05,61800.0,61799.0,1.46050398]
[1724431043475,4e-05,61800.0,61799.0,1.47450398]
[1724431044917,4e-05,61800.0,61799.0,0.563243]
[1724431045276,4e-05,61800.0,61799.0,1.37450398]
[1724431045452,4e-05,61800.0,61799.0,1.05087498]
[1724431046018,4e-05,61800.0,61799.0,1.03687498]
[1724431046418,4e-05,61800.0,61799.0,1.04987498]
[1724431047147,0.16184,61800.0,61799.0,1.03587498]
[1724431047353,0.16184,61800.0,61799.0,1.04987498]
[1724431047917,4e-05,61800.0,61799.0,1.20547498]
[1724431048165,4e-05,61800.0,61799.0,1.52910398]
[1724431049975,0.26904,61800.0,61799.0,0.0768]
[1724431050181,0.27004,61800.0,61799.0,0.0768]
[1724431050384,0.26804,61800.0,61799.0,0.238614]
[1724431050588,0.26804,61800.0,61799.0,1.04987498]
[1724431050828,0.11344,61800.0,61799.0,1.04987498]
[1724431051221,0.11344,61800.0,61799.0,1.03587498]
[1724431051652,4e-05,61800.0,61799.0,1.02787498]
[1724431051865,4e-05,61800.0,61799.0,1.50130398]
[1724431052061,4e-05,61800.0,61799.0,1.60130398]
[1724431052209,4e-05,61800.0,61799.0,1.61430398]
[1724431052633,0.00094311,61800.0,61799.0,1.61430398]
[1724431052848,0.00094311,61800.0,61799.0,1.61830398]
[1724431053212,0.00094311,61800.0,61799.0,1.64130398]
[1724431053419,0.00094311,61800.0,61799.0,1.63730398]
[1724431053645,0.00094311,61800.0,61799.0,1.96093298]
[1724431053845,0.00094311,61800.0,61799.0,1.97493298]
[1724431054016,0.00094311,61800.0,61799.0,1.46050398]
[1724431054219,0.00094311,61800.0,61799.0,1.44650398]
[1724431054418,0.00094311,61800.0,61799.0,1.46050398]
[1724431054967,0.00094311,61800.0,61799.0,1.47450398]
[1724431055570,0.00094311,61800.0,61799.0,1.15087498]
[1724431055771,0.00094311,61800.0,61799.0,1.13687498]
[1724431055995,0.00094311,61800.0,61799.0,1.12287498]
[1724431056137,0.00094311,61800.0,61799.0,1.13687498]
[1724431056320,0.00194311,61800.0,61799.0,1.13687498]
[1724431056515,0.00094311,61800.0,61799.0,1.13687498]
[1724431056775,0.00094311,61800.0,61799.0,1.12287498]
[1724431056978,0.16444311,61800.0,61799.0,0.71124598]
[1724431057358,0.16644311,61800.0,61799.0,0.71124598]
[1724431057564,0.16844311,61800.0,61799.0,0.0758]
[1724431057739,0.16844311,61800.0,61799.0,0.0618]
[1724431057939,0.27984311,61800.0,61799.0,0.0618]
[1724431058140,0.27984311,61800.0,61799.0,0.236614]
[1724431058369,0.22784311,61800.0,61799.0,0.236614]
[1724431058576,0.22884311,61800.0,61799.0,0.560243]
[1724431058776,0.22784311,61800.0,61799.0,0.560243]
[1724431058973,0.22784311,61800.0,61799.0,0.548243]
[1724431059133,0.22784311,61800.0,61799.0,0.231614]
[1724431059337,0.22984311,61800.0,61799.0,0.218614]
[1724431059576,0.22984311,61800.0,61799.0,0.542243]
[1724431059765,0.22984311,61800.0,61799.0,0.535243]
[1724431059962,0.22984311,61800.0,61799.0,0.211614]
[1724431060180,0.22984311,61800.0,61799.0,0.217614]
[1724431060717,0.22484311,61800.0,61799.0,0.541243]
[1724431060865,0.22584311,61800.0,61799.0,0.541243]
[1724431061066,0.22784311,61800.0,61799.0,0.541243]
[1724431061311,0.22984311,61800.0,61799.0,0.217614]
[1724431061613,0.22984311,61800.0,61799.0,0.547243]
[1724431062743,0.22984311,61800.0,61799.0,0.223614]
[1724431063247,0.22984311,61800.0,61799.0,0.0618]
[1724431063463,0.22984311,61800.0,61799.0,0.21729798]
[1724431063804,0.22984311,61800.0,61799.0,0.05548398]
[1724431064014,0.22984311,61800.0,61799.0,0.21729798]
[1724431064411,0.22984311,61800.0,61799.0,0.05548398]
[1724431064797,0.22984311,61800.0,61799.0,0.22412098]
[1724431065053,0.23074841,61800.0,61799.0,0.22412098]
[1724431065229,0.23078841,61800.0,61799.0,0.06230698]
[1724431067342,0.39260041,61800.0,61799.0,0.06230698]
[1724431067546,0.39260041,61800.0,61799.0,0.05630698]
[1724431067749,0.39260041,61800.0,61799.0,0.05930698]
[1724431067945,0.71622441,61800.0,61799.0,0.05930698]
[1724431068174,1.03984841,61800.0,61799.0,0.05930698]
[1724431068372,1.20385139,61800.0,61799.0,0.05930698]
[1724431068575,0.71622441,61800.0,61799.0,0.05330698]
[1724431068773,0.71622441,61800.0,61799.0,0.05730698]
[1724431068931,0.39260041,61800.0,61799.0,0.05730698]
[1724431069129,0.22678841,61800.0,61799.0,0.05030698]
[1724431069361,0.22978841,61800.0,61799.0,0.05030698]
[1724431069561,0.1143453,61800.0,61799.0,0.05030698]
[1724431069903,0.1153453,61800.0,61799.0,0.05030698]
[1724431070117,0.1173453,61800.0,61799.0,0.05030698]
[1724431070311,0.1173453,61800.0,61799.0,0.21212098]
[1724431070512,0.1153453,61800.0,61799.0,0.21212098]
[1724431070719,0.0009453,61800.0,61799.0,1.17051335]
[1724431070934,0.0009453,61800.0,61799.0,1.33451633]
[1724431071145,0.00058593,61810.0,61809.0,0.485365]
[1724431071257,0.00058593,61810.0,61809.0,1.68009935]
[1724431071470,0.00058593,61810.0,61809.0,2.00367635]
[1724431071670,0.00058593,61810.0,61809.0,2.02667635]
[1724431072320,0.00058593,61810.0,61809.0,2.00367635]
[1724431072560,0.00058593,61810.0,61809.0,1.08694498]
[1724431072758,0.00058593,61810.0,61809.0,0.66336798]
[1724431073323,0.00058593,61810.0,61809.0,0.64936798]
[1724431073744,0.00062593,61810.0,61809.0,0.66336798]
[1724431074131,0.00362593,61810.0,61809.0,0.025]
[1724431074479,0.26222593,61810.0,61809.0,0.025]
[1724431074750,0.25822593,61810.0,61809.0,0.025]
[1724431075174,0.25822593,61810.0,61809.0,0.011]
[1724431075380,0.25822593,61810.0,61809.0,0.023]
[1724431075594,0.00062593,61810.0,61809.0,1.25014498]
[1724431075793,0.00062593,61810.0,61809.0,1.24914498]
[1724431076005,0.00062593,61810.0,61809.0,1.14114498]
[1724431076207,0.00062593,61810.0,61809.0,1.46472198]
[1724431076408,0.00062593,61810.0,61809.0,1.13014498]
[1724431076556,0.00062593,61810.0,61809.0,1.13514498]
[1724431077341,0.00062593,61810.0,61809.0,1.45872198]
[1724431077545,0.00062593,61810.0,61809.0,1.93728426]
[1724431077946,0.00153123,61810.0,61809.0,1.93728426]
[1724431078147,0.00153123,61810.0,61809.0,1.81250437]
[1724431078512,0.00153123,61810.0,61809.0,2.33661084]
[1724431078718,0.00153123,61810.0,61809.0,2.54499536]
[1724431078942,0.00153123,61810.0,61809.0,2.22641836]
[1724431079346,0.00153123,61810.0,61809.0,2.19341836]
[1724431079477,0.00153123,61810.0,61809.0,2.20741836]
[1724431079677,0.00153123,61810.0,61809.0,1.89784136]
[1724431080264,0.00153123,61810.0,61809.0,1.99404139]
[1724431080968,0.00153123,61810.0,61809.0,2.31761839]
[1724431081408,0.00153123,61810.0,61809.0,2.22141836]
[1724431081621,0.00153123,61810.0,61809.0,2.31761449]
[1724431082026,0.00153123,61810.0,61809.0,2.22141836]
[1724431083065,0.00153123,61810.0,61809.0,2.29354442]
[1724431083471,0.00153123,61810.0,61809.0,1.93477948]
[1724431083672,0.00153123,61810.0,61809.0,1.86265342]
[1724431084305,0.001,61821.0,61820.0,0.52395975]
[1724431084438,0.1168,61823.0,61821.0,0.161757]
[1724431084439,0.001,61822.0,61821.0,0.161757]
[1724431084874,0.003,61822.0,61821.0,0.161757]
[1724431085274,0.005,61821.0,61820.0,0.03868175]
[1724431085477,0.1465,61821.0,61820.0,0.03868175]
[1724431085825,0.1465,61821.0,61820.0,0.04468175]
[1724431086538,0.1465,61821.0,61820.0,0.05068175]
[1724431087145,0.2629,61821.0,61820.0,0.05068175]
[1724431087547,1.32763886,61821.0,61820.0,0.05068175]
[1724431087849,1.65115286,61821.0,61820.0,0.05068175]
[1724431088053,1.55920198,61821.0,61820.0,0.05068175]
[1724431088461,1.55920198,61821.0,61820.0,0.04468175]
[1724431088709,1.23568798,61821.0,61820.0,0.04468175]
[1724431088912,0.2629,61821.0,61820.0,0.03968175]
[1724431089136,0.2629,61821.0,61820.0,0.04068175]
[1724431089343,0.1174,61821.0,61820.0,0.04068175]
[1724431089746,0.1194,61821.0,61820.0,0.20244075]
[1724431090020,0.002,61822.0,61821.0,0.161757]
[1724431090021,0.001,61822.0,61821.0,0.161757]
[1724431090221,0.001,61823.0,61822.0,0.161754]
[1724431090458,0.002,61823.0,61822.0,0.485263]
[1724431090684,0.1145,61828.0,61823.0,0.80876]
[1724431090894,0.00104,61829.0,61823.0,1.23006298]
[1724431091122,0.00304,61829.0,61823.0,1.11516298]
[1724431091323,4e-05,61829.0,61823.0,1.11516298]
[1724431091739,0.00104,61829.0,61823.0,1.11516298]
[1724431091960,0.001675,61848.0,61845.0,0.485083]
[1724431092160,0.001675,61848.0,61845.0,0.69362544]
[1724431092161,0.002675,61848.0,61845.0,0.69362544]
[1724431092370,0.00158559,61846.0,61845.0,0.69362544]
[1724431092589,0.00158559,61846.0,61845.0,1.01701444]
[1724431092795,0.00258559,61846.0,61845.0,1.01701444]
[1724431092994,0.00058559,61846.0,61845.0,1.26641243]
[1724431093312,0.00058559,61846.0,61845.0,0.87101444]
[1724431094122,0.00058559,61846.0,61845.0,1.19440344]
[1724431094553,0.00058559,61846.0,61845.0,0.88501444]
[1724431094751,0.00358559,61846.0,61845.0,0.89901444]
[1724431095572,0.00158559,61846.0,61845.0,0.513083]
[1724431095778,0.00158559,61846.0,61845.0,0.836472]
[1724431096188,0.00358559,61846.0,61845.0,0.513083]
[1724431096650,0.00558559,61846.0,61845.0,0.513083]
[1724431096846,0.00158559,61846.0,61845.0,0.513083]
[1724431097199,0.00258559,61846.0,61845.0,0.513083]
[1724431097404,0.00258559,61846.0,61845.0,0.499083]
[1724431097608,0.00358559,61846.0,61845.0,0.485083]
[1724431097807,0.00358559,61846.0,61845.0,0.028]
[1724431097808,0.00558559,61846.0,61845.0,0.028]
[1724431098027,0.12288559,61846.0,61845.0,0.028]
[1724431098235,0.004,61845.0,61844.0,0.161696]
[1724431098667,0.001,61837.0,61836.0,0.16795986]
[1724431098866,0.002,61840.0,61839.0,0.80855]
[1724431098867,0.001,61840.0,61839.0,0.80855]
[1724431099660,0.001,61844.0,61843.0,0.161699]
[1724431099863,0.005,61844.0,61843.0,0.485098]
[1724431100103,0.00158559,61846.0,61839.0,0.16400298]
[1724431100473,0.00058559,61846.0,61845.0,0.957172]
[1724431100592,0.00058559,61846.0,61845.0,1.34107498]
[1724431101034,0.00058559,61846.0,61845.0,1.66446398]
[1724431101391,0.00058559,61846.0,61845.0,1.98785298]
[1724431101594,0.00058559,61846.0,61845.0,1.66446398]
[1724431102035,0.00058559,61846.0,61845.0,1.98785298]
[1724431102230,0.001675,61848.0,61847.0,1.314843]
[1724431102442,0.001675,61848.0,61847.0,1.92522398]
[1724431102818,0.001675,61848.0,61847.0,1.90222398]
[1724431103027,0.001675,61848.0,61847.0,1.22304798]
[1724431103183,0.001675,61848.0,61847.0,0.485067]
[1724431103384,0.001675,61848.0,61847.0,0.499067]
[1724431103791,0.004675,61848.0,61847.0,0.014]
[1724431104022,0.004675,61848.0,61847.0,0.028]
[1724431104023,0.002675,61848.0,61847.0,0.028]
[1724431104225,0.002675,61848.0,61847.0,0.189689]
[1724431104423,0.002675,61848.0,61847.0,0.028]
[1724431104625,0.002675,61848.0,61841.0,0.00640129]
[1724431104626,0.001675,61848.0,61841.0,0.00640129]
[1724431104921,0.001675,61848.0,61847.0,0.66306998]
[1724431104922,0.002675,61848.0,61847.0,0.66306998]
[1724431105137,0.004675,61848.0,61847.0,0.67706998]
[1724431105339,0.001675,61848.0,61847.0,0.78826998]
[1724431105655,0.001675,61848.0,61847.0,1.22464798]
[1724431105836,0.001675,61848.0,61847.0,1.22364798]
[1724431106238,0.001,61856.0,61854.0,0.323341]
[1724431106437,0.001,61856.0,61847.0,0.42820298]
[1724431106438,0.004,61857.0,61855.0,0.161667]
[1724431106661,0.00481652,61861.0,61853.0,0.48502]
[1724431106662,0.001,61854.0,61853.0,0.48502]
[1724431106863,0.001,61854.0,61853.0,0.161673]
[1724431107228,0.004,61854.0,61853.0,0.161673]
[1724431107338,0.004,61849.0,61848.0,0.161686]
[1724431107543,0.00481652,61861.0,61848.0,0.161686]
[1724431107544,0.004,61855.0,61851.0,0.323357]
[1724431107800,0.004,61855.0,61848.0,0.16400298]
[1724431107801,0.004,61856.0,61855.0,0.161668]
[1724431108208,0.004,61856.0,61851.0,0.323355]
[1724431108209,0.002,61859.0,61858.0,0.16166]
[1724431108412,0.00681652,61861.0,61860.0,0.484965]
[1724431108634,0.00481652,61861.0,61860.0,1.29558798]
[1724431108762,0.00481652,61861.0,61860.0,0.64896798]
[1724431108966,0.00481652,61861.0,61860.0,0.97227798]
[1724431109579,0.00481652,61861.0,61860.0,1.12047798]
[1724431110083,0.00481652,61861.0,61860.0,0.98227798]
[1724431110255,0.00481652,61861.0,61860.0,0.97227798]
[1724431110696,0.0005856,61864.0,61861.0,0.808262]
[1724431111702,0.0005856,61864.0,61861.0,0.484957]
[1724431111899,0.0005856,61864.0,61861.0,0.161652]
[1724431112083,0.0005856,61864.0,61861.0,0.175652]
[1724431112656,0.16124201,61862.0,61861.0,0.014]
[1724431112839,0.16024201,61862.0,61861.0,0.028]
[1724431113080,0.27624201,61862.0,61861.0,0.028]
[1724431113887,0.76319201,61862.0,61861.0,0.014]
[1724431114306,1.08649201,61862.0,61861.0,0.024]
[1724431114504,1.25049499,61862.0,61861.0,0.024]
[1724431114712,1.68250275,61862.0,61861.0,0.024]
[1724431115335,0.004,61843.0,61839.0,0.32342]
[1724431115535,0.004,61847.0,61836.0,0.38593144]
[1724431115753,0.002,61845.0,61844.0,0.485091]
[1724431115942,0.004,61849.0,61847.0,0.161688]
[1724431116449,0.1147,61850.0,61849.0,0.485052]
[1724431116450,0.004,61850.0,61849.0,0.485052]
[1724431117336,0.004,61853.0,61850.0,0.323362]
[1724431117585,0.1493,61860.0,61855.0,0.161667]
[1724431117794,0.002,61857.0,61856.0,0.161665]
[1724431118001,0.002,61858.0,61854.0,0.323341]
[1724431118208,0.002,61858.0,61857.0,0.808315]
[1724431118335,0.004,61858.0,61857.0,0.484989]
[1724431119413,0.004,61858.0,61857.0,0.161663]
[1724431120323,0.004,61858.0,61857.0,0.498989]
[1724431120953,0.004,61858.0,61857.0,0.188663]
[1724431122056,0.004,61858.0,61857.0,0.027]
[1724431125454,0.488981,61858.0,61857.0,0.027]
[1724431125668,0.601481,61858.0,61857.0,0.027]
[1724431125854,1.22950498,61858.0,61857.0,0.027]
[1724431126211,1.55282598,61858.0,61857.0,0.027]
[1724431126432,1.22950498,61858.0,61857.0,0.027]
[1724431126598,1.22950498,61858.0,61857.0,0.013]
[1724431126821,0.002,61844.0,61843.0,0.161697]
[1724431127041,0.002,61849.0,61841.0,0.161703]
[1724431127042,0.002,61842.0,61841.0,0.161703]
[1724431127672,0.002,61849.0,61845.0,0.161694]
[1724431127673,0.002,61846.0,61845.0,0.161694]
[1724431128057,0.002,61846.0,61844.0,0.161697]
[1724431128256,0.002,61849.0,61844.0,0.161697]
[1724431128257,0.002,61845.0,61844.0,0.161697]
[1724431128461,0.004,61844.0,61843.0,0.028]
[1724431128645,0.004,61844.0,61843.0,0.189699]
[1724431129063,0.1395,61849.0,61843.0,0.028]
[1724431129263,0.004,61845.0,61843.0,0.351399]
[1724431129460,0.002,61844.0,61843.0,0.028]
[1724431129834,0.002,61844.0,61843.0,0.014]
[1724431129965,0.004,61844.0,61843.0,0.161699]
[1724431130161,0.1395,61854.0,61844.0,0.175697]
[1724431130162,0.004,61845.0,61844.0,0.175697]
[1724431130442,0.002,61847.0,61844.0,0.014]
[1724431130626,0.1187,61845.0,61844.0,0.014]
[1724431130829,0.1187,61845.0,61842.0,0.000822]
[1724431130830,0.004,61843.0,61842.0,0.000822]
[1724431130986,0.1572,61843.0,61842.0,0.000822]
[1724431131585,0.642298,61843.0,61842.0,0.000822]
[1724431131808,0.965697,61843.0,61842.0,0.000822]
[1724431132013,0.642298,61843.0,61842.0,0.000822]
[1724431132444,0.965697,61843.0,61842.0,0.000822]
[1724431132682,0.318899,61843.0,61842.0,0.000822]
[1724431132848,0.1572,61843.0,61842.0,0.000822]
[1724431133031,0.002,61843.0,61842.0,0.012822]
[1724431133240,0.004,61843.0,61842.0,0.000822]
[1724431134350,0.004,61843.0,61842.0,0.005822]
[1724431134475,0.004,61843.0,61842.0,0.001822]
[1724431134936,0.004,61843.0,61842.0,0.000822]
[1724431135438,0.165699,61843.0,61842.0,0.000822]
[1724431135850,0.004,61843.0,61842.0,0.003822]
[1724431136058,0.004,61844.0,61842.0,0.003822]
[1724431136269,0.004,61843.0,61842.0,0.003822]
[1724431136477,0.004,61843.0,61842.0,0.165524]
[1724431136629,0.004,61843.0,61842.0,0.168524]
[1724431136832,0.004,61845.0,61842.0,0.165524]
[1724431137043,0.1168,61850.0,61842.0,0.470126]
[1724431137221,0.1168,61850.0,61846.0,0.161691]
[1724431137222,0.004,61847.0,61846.0,0.161691]
[1724431138281,0.002,61843.0,61842.0,0.008822]
[1724431138774,0.002,61843.0,61842.0,0.005822]
[1724431138775,0.145,61843.0,61842.0,0.005822]
[1724431139160,0.004,61845.0,61843.0,0.161698]
[1724431139410,0.004,61844.0,61842.0,0.000822]
[1724431139612,0.141,61848.0,61842.0,0.000822]
[1724431139613,0.004,61845.0,61842.0,0.000822]
[1724431139949,0.004,61845.0,61844.0,0.485091]
[1724431140157,0.004,61845.0,61844.0,0.630991]
[1724431140376,0.004,61855.0,61844.0,0.54993442]
[1724431140630,0.004,61855.0,61854.0,0.485013]
[1724431140838,0.003,61847.0,61846.0,0.485072]
[1724431141018,0.002,61852.0,61849.0,0.161683]
[1724431141227,0.002,61853.0,61849.0,0.161683]
[1724431141228,0.002,61850.0,61849.0,0.161683]
[1724431141367,0.004,61850.0,61849.0,0.161683]
[1724431141567,0.1473,61854.0,61846.0,0.323381]
[1724431141568,0.004,61851.0,61846.0,0.323381]
[1724431141793,0.004,61851.0,61845.0,0.1459]
[1724431141794,0.004,61853.0,61845.0,0.1459]
[1724431142034,0.004,61853.0,61847.0,0.161686]
[1724431142269,0.004,61853.0,61846.0,0.323381]
[1724431142270,0.004,61849.0,61846.0,0.323381]
[1724431142390,0.002,61850.0,61849.0,0.01]
[1724431142598,0.004,61850.0,61849.0,0.171682]
[1724431143234,0.002,61850.0,61849.0,0.01]
[1724431143438,0.1202,61850.0,61849.0,0.01]
[1724431143731,0.1202,61850.0,61845.0,0.1459]
[1724431143732,0.1162,61850.0,61848.0,0.161685]
[1724431144155,0.1162,61850.0,61849.0,0.011]
[1724431144408,0.1202,61850.0,61849.0,0.011]
[1724431145140,0.004,61853.0,61849.0,0.172684]
[1724431145402,0.004,61853.0,61850.0,0.161681]
[1724431145650,0.002,61852.0,61850.0,0.161681]
[1724431145828,0.002,61852.0,61849.0,0.011]
[1724431145829,0.002,61851.0,61849.0,0.021]
[1724431146019,0.004,61850.0,61849.0,0.01]
[1724431147312,0.004,61851.0,61850.0,0.007]
[1724431147517,4e-05,61852.0,61850.0,0.007]
[1724431147773,0.002,61851.0,61849.0,0.011]
[1724431148020,4e-05,61852.0,61849.0,0.011]
[1724431148021,0.004,61850.0,61849.0,0.011]
[1724431148223,0.004,61850.0,61849.0,0.021]
[1724431148798,0.004,61850.0,61849.0,0.011]
[1724431149022,0.004,61850.0,61845.0,0.161693]
[1724431149251,0.004,61850.0,61849.0,0.009]
[1724431149501,0.002,61850.0,61849.0,0.009]
[1724431149727,0.002,61850.0,61849.0,0.019]
[1724431149912,0.004,61850.0,61849.0,0.009]
[1724431150152,4e-05,61851.0,61849.0,0.332364]
[1724431150357,4e-05,61851.0,61850.0,0.808405]
[1724431150528,4e-05,61851.0,61850.0,1.37343]
[1724431150990,4e-05,61851.0,61850.0,1.696792]
[1724431151601,4e-05,61851.0,61850.0,1.705792]
[1724431152749,4e-05,61851.0,61850.0,1.074005]
[1724431153068,4e-05,61851.0,61850.0,0.959105]
[1724431153452,4e-05,61851.0,61850.0,0.969105]
[1724431153655,0.00404,61851.0,61850.0,0.645743]
[1724431153858,4e-05,61851.0,61850.0,0.645743]
[1724431154499,0.00204,61851.0,61850.0,0.645743]
[1724431154700,0.00204,61851.0,61850.0,0.180681]
[1724431154701,0.00404,61851.0,61850.0,0.180681]
[1724431154902,4e-05,61851.0,61850.0,0.180681]
[1724431155102,0.00204,61851.0,61850.0,0.180681]
[1724431155305,0.00204,61851.0,61850.0,0.019]
[1724431155306,0.00404,61851.0,61850.0,0.019]
[1724431156060,0.00345621,61851.0,61850.0,0.019]
[1724431156260,0.1138,61851.0,61850.0,0.180681]
[1724431156467,0.11525621,61851.0,61850.0,0.019]
[1724431156674,0.11725621,61851.0,61850.0,0.019]
[1724431157127,0.00345621,61851.0,61850.0,0.019]
[1724431157754,0.00145621,61851.0,61850.0,0.019]
[1724431157952,4e-05,61852.0,61850.0,0.019]
[1724431158155,0.00349621,61852.0,61850.0,0.019]
[1724431158376,0.00345621,61851.0,61850.0,0.180679]
[1724431158606,0.00345621,61851.0,61850.0,0.504041]
[1724431158783,0.00345621,61851.0,61850.0,0.180679]
[1724431158982,0.00345621,61851.0,61850.0,0.170679]
[1724431159186,0.00345621,61851.0,61850.0,0.178679]
[1724431159502,0.00345621,61851.0,61850.0,0.170679]
[1724431159903,0.00345621,61851.0,61850.0,0.180679]
[1724431160108,0.00345621,61851.0,61850.0,0.01]
[1724431160457,0.00345621,61851.0,61850.0,0.171681]
[1724431160630,0.00345621,61851.0,61850.0,0.503043]
[1724431161043,0.00345621,61851.0,61850.0,0.495043]
[1724431161244,0.00349621,61852.0,61851.0,0.161678]
[1724431161825,0.00349621,61852.0,61850.0,0.019]
[1724431161826,0.00345621,61851.0,61850.0,0.019]
[1724431162025,0.00345621,61851.0,61850.0,0.171681]
[1724431162406,0.00345621,61851.0,61850.0,0.161681]
[1724431162805,0.00349621,61852.0,61851.0,0.161678]
[1724431163428,0.00345621,61851.0,61850.0,0.171681]
[1724431163642,0.00345621,61851.0,61850.0,0.495043]
[1724431164163,0.00345621,61851.0,61850.0,0.485043]
[1724431164490,0.00349621,61852.0,61851.0,0.161678]
[1724431164712,0.00349621,61852.0,61851.0,0.485035]
[1724431165051,4e-05,61852.0,61851.0,0.485035]
[1724431165479,4e-05,61852.0,61851.0,0.493035]
[1724431165744,0.00090421,61858.0,61851.0,0.493035]
[1724431165745,0.11270042,61860.0,61853.0,0.161673]
[1724431166296,0.11270042,61860.0,61851.0,0.331357]
[1724431166297,0.11270042,61860.0,61854.0,0.161671]
[1724431166660,0.11270042,61860.0,61854.0,0.16167]
[1724431167326,0.11270042,61860.0,61853.0,0.161673]
[1724431167482,0.11270042,61860.0,61851.0,0.008]
[1724431167683,0.161662,61858.0,61849.0,0.323368]
[1724431167882,0.27435742,61860.0,61851.0,0.161677]
[1724431168108,0.161658,61859.0,61851.0,0.161677]
[1724431168453,0.11370042,61860.0,61854.0,0.161669]
[1724431168645,0.11270042,61860.0,61854.0,0.161669]
[1724431168987,0.11270042,61860.0,61853.0,0.161673]
[1724431169184,0.11270042,61860.0,61849.0,0.323365]
[1724431169389,0.161659,61859.0,61851.0,0.161676]
[1724431169587,0.43601342,61860.0,61852.0,0.161675]
[1724431169588,0.11270042,61860.0,61852.0,0.161675]
[1724431169808,0.27435542,61860.0,61853.0,0.161673]
[1724431170216,0.161658,61859.0,61851.0,0.001]
[1724431170585,0.11270042,61860.0,61851.0,0.162678]
[1724431170586,0.43601142,61860.0,61851.0,0.162678]
[1724431170786,0.161658,61859.0,61851.0,0.162678]
[1724431171308,0.161658,61859.0,61851.0,0.001]
[1724431171512,0.161658,61859.0,61852.0,0.161676]
[1724431171997,0.161658,61859.0,61845.0,0.000822]
[1724431171998,0.1134,61856.0,61845.0,0.000822]
[1724431172202,0.00904201,61862.0,61845.0,0.000822]
[1724431172203,0.161679,61851.0,61845.0,0.000822]
[1724431172415,0.161676,61852.0,61845.0,0.000822]
[1724431172625,0.161691,61846.0,61845.0,0.000822]
[1724431172833,0.275091,61846.0,61845.0,0.000822]
[1724431173040,0.1134,61846.0,61845.0,0.000822]
[1724431173240,0.275091,61846.0,61845.0,0.000822]
[1724431173381,0.76247698,61846.0,61845.0,0.000822]
[1724431173578,1.20841498,61846.0,61845.0,0.004822]
[1724431173791,1.34811498,61846.0,61845.0,0.004822]
[1724431173991,1.54894298,61846.0,61845.0,0.004822]
[1724431174616,1.54894298,61846.0,61845.0,0.009822]
[1724431174842,1.54894298,61846.0,61845.0,0.005822]
[1724431175246,1.54894298,61846.0,61845.0,0.010822]
[1724431175646,1.54894298,61846.0,61845.0,0.005822]
[1724431175866,1.60696975,61846.0,61845.0,0.005822]
[1724431176003,1.60696975,61846.0,61845.0,0.000822]
[1724431176255,1.93235275,61846.0,61845.0,0.000822]
[1724431176455,1.60896975,61846.0,61845.0,0.000822]
[1724431176653,1.93235275,61846.0,61845.0,0.000822]
[1724431176851,2.03035275,61846.0,61845.0,0.000822]
[1724431177189,2.03235275,61846.0,61845.0,0.000822]
[1724431177393,2.10612217,61846.0,61845.0,0.000822]
[1724431177594,2.03235275,61846.0,61845.0,0.000822]
[1724431178579,2.10606959,61846.0,61845.0,0.000822]
[1724431178797,2.07204282,61846.0,61845.0,0.000822]
[1724431178997,2.0216362,61846.0,61845.0,0.000822]
[1724431179324,2.09432686,61846.0,61845.0,0.001822]
[1724431179461,2.1487163,61846.0,61845.0,0.002822]
[1724431179662,1.00817698,61846.0,61845.0,0.002822]
[1724431179918,0.90817698,61846.0,61845.0,0.002822]
[1724431180133,1.55494298,61846.0,61845.0,0.002822]
[1724431181318,1.55498298,61846.0,61845.0,0.002822]
[1724431182190,1.57798298,61846.0,61845.0,0.002822]
[1724431182483,1.55498298,61846.0,61845.0,0.002822]
[1724431182696,1.23159998,61846.0,61845.0,0.002822]
[1724431184999,1.55498298,61846.0,61845.0,0.002822]
[1724431185230,1.23159998,61846.0,61845.0,0.002822]
[1724431185374,1.67814298,61846.0,61845.0,0.002822]
[1724431185716,1.55498298,61846.0,61845.0,0.002822]